Cogmind - Beta 10.2 @@@ ROGUE MODE // 2021.12.10 @ 21:24:56 Player: theMouse Result: Destroyed by G-34 Mercenary with Small Laser Performance ------------- Evolutions (1) 500 Regions Visited (3) 600 Robots Destroyed (9) 45 Value Destroyed (277) 277 Prototype IDs (2) 40 Alien Tech Used (0) 0 Bonus (0) 0 TOTAL SCORE: 1462 Bonus ------- None Cogmind --------- Core Integrity 0/400 Matter 257/300 Energy 499/500 System Corruption 0% Temperature Cool (6) Movement Core (100) Ox1 Location -9/Materials Parts ------- > --- POWER (1) -------- (None) > --- PROPULSION (2) --- (None) > --- UTILITY (3) ------ High-capacity Battery > --- WEAPON (3) ------- (None) > --- INVENTORY (4) ---- Light Ion Engine Peak State ------------ > --- POWER ------------ Light Nuclear Core > --- PROPULSION ------- Aluminum Leg Aluminum Leg > --- UTILITY ---------- Small Storage Unit High-capacity Battery > --- WEAPON ----------- Small Laser Assault Rifle > --- INVENTORY -------- Ion Engine Light Ion Engine High-capacity Battery Small Laser Grenade Launcher [Rating: 9] Favorites ----------- Power Light Nuclear Core Engine Ion Engine Power Core Light Nuclear Core Propulsion Aluminum Leg Leg Aluminum Leg Wheel Compact Wheel Utility High-capacity Battery Storage High-capacity Battery Weapon Assault Rifle Energy Gun Small Laser Ballistic Gun Assault Rifle Launcher Grenade Launcher Build | -11 -10 -10 -9 ------- Run | Scr Mat Min Mat Slots Evolved 2 | . . . 2 Power . | . . . . Propulsion . | . . . . Utility 1 | . . . 1 Weapon 1 | . . . 1 Parts Attached 16 | . 1 8 7 Power 2 | . . 2 . Engine 1 | . . 1 . Core 1 | . . 1 . Reactor . | . . . . Propulsion 6 | . . 2 4 Treads . | . . . . Leg 3 | . . 2 1 Wheel 3 | . . . 3 Hover . | . . . . Flight . | . . . . Utility 2 | . 1 . 1 Device . | . . . . Storage 2 | . 1 . 1 Processor . | . . . . Hackware . | . . . . Protection . | . . . . Artifact . | . . . . Weapon 6 | . . 4 2 Energy Gun 1 | . . 1 . Energy Cannon . | . . . . Ballistic Gun 2 | . . . 2 Ballistic Cannon . | . . . . Launcher 3 | . . 3 . Special Weapon . | . . . . Impact Weapon . | . . . . Slashing Weapon . | . . . . Piercing Weapon . | . . . . Special Melee Weapon . | . . . . Unidentified Prototypes . | . . . . Parts Lost 18 | . . 8 10 Power 3 | . . 2 1 Propulsion 6 | . . 3 3 Utility 2 | . . . 2 Weapon 7 | . . 3 4 Highest Loss Streak 10 | . . 4 10 Average Slot Usage (%) 87 | . 97 89 68 Engine 5 | . 14 4 7 Core 6 | . . 9 . Leg 21 | . 28 23 2 Wheel 1 | . . . 11 Storage 28 | . 25 28 30 Energy Gun 8 | . 14 8 . Ballistic Gun 8 | . 14 9 3 Launcher 6 | . . 6 13 Naked Turns . | . . . . Heaviest Build 23 | 10 14 19 23 Greatest Support 32 | 20 20 20 32 Greatest Overweight (x) 4 | . . 1 4 Average Overweight (x) . | . . . . Largest Inventory Capacity 6 | . 6 6 6 Average Capacity 5 | . 6 6 5 Most Carried 6 | . 6 6 4 Average Carried 4 | . 5 5 2 Final Capacity 6 | 6 6 6 4 Final Carried 6 | 6 6 5 1 Class Distribution -------------------- 100% | Mutant Dominant Class ---------------- Mutant | -10/Materials Mutant | -10/Mines Mutant | -9/Materials Resources | -11 -10 -10 -9 ----------- Run | Scr Mat Min Mat Matter Collected 382 | 200 31 128 23 Remotely . | . . . . Salvage Created 313 | . 87 156 70 Parts 13 | . 6 3 4 Haulers Intercepted . | . . . . Recyclers Shooed . | . . . . Parts Field Recycled . | . . . . Retrieved Matter . | . . . . Parts Self-Destructed . | . . . . Prevented . | . . . . Kills | -11 -10 -10 -9 ------- Run | Scr Mat Min Mat Combat Hostiles Destroyed 8 | . 2 4 2 Guns 6 | . 2 2 2 AOE 2 | . . 2 . Classes Destroyed 4 | . 1 2 1 Recycler 1 | . . 1 . Swarmer 2 | . . 2 . Grunt 5 | . 2 2 1 Sentry 1 | . . . 1 Best Kill Streak 2 | . 2 2 2 Combat Bots Only 2 | . 2 2 2 Max Kills in Single Turn 1 | . 1 1 1 Gunslinging . | . . . . Exploded 1 | . . 1 . Melee . | . . . . Uniques/NPCs Destroyed . | . . . . Combat | -11 -10 -10 -9 -------- Run | Scr Mat Min Mat Damage Taken 1889 | . 211 579 1099 Core 595 | . . 193 402 Absorbed by Shields . | . . . . Core Remaining (%) 61 | 100 . 22 . Volleys Fired 33 | . 7 20 6 Largest 2 | . 2 2 2 Hottest 60 | . 60 60 50 Shots Fired 50 | . 14 26 10 Gun 46 | . 14 23 9 Cannon . | . . . . Launcher 4 | . . 3 1 Special . | . . . . Kinetic 33 | . 7 17 9 Thermal 13 | . 7 6 . Explosive 4 | . . 3 1 Electromagnetic . | . . . . Robot Hit Streak 8 | . 7 8 4 Robot Miss Streak 5 | . 1 2 5 Penetration Max . | . . . . Secondary Targets . | . . . . Shots Hit Robots 36 | . 11 19 6 Core Hits 19 | . 5 9 5 Critical Hits . | . . . . Critical Kills . | . . . . Critical Parts Destroyed . | . . . . Melee Attacks . | . . . . Impact . | . . . . Slashing . | . . . . Piercing . | . . . . Sneak Attacks . | . . . . Combat Hostiles . | . . . . Follow-up Attacks . | . . . . Damage Inflicted 703 | . 95 413 195 Guns 540 | . 95 250 195 Cannons . | . . . . Explosions 163 | . . 163 . Melee . | . . . . Ramming . | . . . . Kinetic 436 | . 50 191 195 Thermal 104 | . 45 59 . Explosive 163 | . . 163 . Electromagnetic . | . . . . Impact . | . . . . Slashing . | . . . . Piercing . | . . . . Highest Corruption . | . . . . Average Corruption . | . . . . Corruption Purged . | . . . . Overload Shots . | . . . . Overflow Damage 20 | . . 20 . Projectiles . | . . . . Explosions 20 | . . 20 . Melee . | . . . . Knockbacks . | . . . . Impact . | . . . . Kinetic . | . . . . Secondary . | . . . . Self-Inflicted Damage . | . . . . Shots . | . . . . Rammed . | . . . . Targets Rammed . | . . . . Kicked . | . . . . Crushed . | . . . . Highest Temperature 36 | . 36 27 3 Average Temperature 18 | . 24 14 2 Received Heat Transfer 474 | . 117 135 222 Siege Activations . | . . . . Robots Corrupted . | . . . . Combat Hostiles . | . . . . Parts Fried . | . . . . Impact Corruptions . | . . . . Robots Melted . | . . . . Combat Hostiles . | . . . . Parts Melted 1 | . 1 . . Heat Transferred 225 | . 100 125 . Parts Sabotaged . | . . . . Parts Stolen . | . . . . Parts Stripped . | . . . . Power Chain Reactions . | . . . . Missiles Intercepted . | . . . . Alert | -11 -10 -10 -9 ------- Run | Scr Mat Min Mat Peak Influence 65 | . 65 55 55 Initial 25 | . . 25 19 Average 39 | . 29 45 19 Maximum Alert Level . | . . . . Low Security (%) 100 | . 100 100 100 Level 1 . | . . . . Level 2 . | . . . . Level 3 . | . . . . Level 4 . | . . . . Level 5 . | . . . . High Security . | . . . . Max Security . | . . . . Squads Dispatched 2 | . 1 . 1 Investigation 1 | . . . 1 Extermination . | . . . . Reinforcement 1 | . 1 . . Assault . | . . . . Garrison . | . . . . Intercept . | . . . . Construction Impeded . | . . . . Haulers Reinforced . | . . . . Stealth | -11 -10 -10 -9 --------- Run | Scr Mat Min Mat Distress Signals 1 | . . . 1 Communications Jammed . | . . . . Distress Signals . | . . . . Times Spotted 23 | . 6 8 9 Peak Tracking Total 9 | . 3 4 9 Tactical Retreats 2 | . . 2 . Traps | -11 -10 -10 -9 ------- Run | Scr Mat Min Mat Traps Triggered . | . . . . Indirectly . | . . . . Trap Hack Attempts . | . . . . Triggered . | . . . . Disarmed . | . . . . Reprogrammed . | . . . . Reused . | . . . . Traps Extracted . | . . . . Installed 1 | . . . 1 Triggered . | . . . . Machines | -11 -10 -10 -9 ---------- Run | Scr Mat Min Mat Machines Disabled 1 | . . . 1 Max in Single Turn 1 | . . . 1 Machines Sabotaged . | . . . . Garrisons Compromised . | . . . . Overloaded Fab Kills . | . . . . Fab Network Shutdowns . | . . . . Hacking | -11 -10 -10 -9 --------- Run | Scr Mat Min Mat Machines Accessed 2 | . 1 . 1 Terminals 2 | . 1 . 1 Fabricators . | . . . . Repair Stations . | . . . . Recycling Units . | . . . . Scanalyzers . | . . . . Garrison Access . | . . . . Total Hacks 8 | . 4 . 4 Successful 5 | . 2 . 3 Failed 3 | . 2 . 1 Catastrophic . | . . . . Database Lockouts . | . . . . Manual . | . . . . Terminals 8 | . 4 . 4 Fabricators . | . . . . Repair Stations . | . . . . Recycling Units . | . . . . Scanalyzers . | . . . . Garrison Access . | . . . . Terminal Hacks 5 | . 2 . 3 Record 3 | . 1 . 2 Prototype ID Bank 1 | . 1 . . Zone Layout 1 | . . . 1 Fabricator Hacks . | . . . . Repair Station Hacks . | . . . . Recycling Unit Hacks . | . . . . Scanalyzer . | . . . . Garrison Access Hacks . | . . . . Unauthorized Hacks . | . . . . Terminals . | . . . . Fabricators . | . . . . Repair Stations . | . . . . Recycling Units . | . . . . Scanalyzers . | . . . . Garrison Access . | . . . . Data Cores Recovered . | . . . . Used . | . . . . Hacking Detections 1 | . . . 1 Full Trace Events 1 | . . . 1 Feedback Events . | . . . . Feedback Blocked . | . . . . Robot Schematics Acquired . | . . . . Robots Built . | . . . . Matter . | . . . . Time . | . . . . Total Robot Build Rating . | . . . . Part Schematics Acquired . | . . . . Parts Built . | . . . . Matter . | . . . . Time . | . . . . Total Part Build Rating . | . . . . Parts Repaired . | . . . . Time . | . . . . Parts Recycled . | . . . . Recycled Matter . | . . . . Retrieved Matter . | . . . . Retrieved Components . | . . . . Parts Scanalyzed . | . . . . Part Schematics Acquired . | . . . . Parts Damaged . | . . . . Bothacking | -11 -10 -10 -9 ------------ Run | Scr Mat Min Mat Used RIF Installer . | . . . . Robots Hacked . | . . . . Non-combat . | . . . . Combat . | . . . . Robot Hacks Applied . | . . . . Relay Couplers Released . | . . . . Robots Rewired . | . . . . Allies Hacked . | . . . . Hacks Repelled . | . . . . Allies | -11 -10 -10 -9 -------- Run | Scr Mat Min Mat Total Allies . | . . . . Largest Group . | . . . . Highest-Rated Group . | . . . . Highest-Rated Ally . | . . . . Total Orders . | . . . . Ally Attacks . | . . . . Total Damage . | . . . . Kills . | . . . . Allies Corrupted . | . . . . Allies Melted . | . . . . Intel | -11 -10 -10 -9 ------- Run | Scr Mat Min Mat Robot Analysis Total . | . . . . Derelict Logs Recovered 1 | . . 1 . Drone Launches . | . . . . Drone Recoveries . | . . . . Exploration | -11 -10 -10 -9 ------------- Run | Scr Mat Min Mat Turns Passed 772 | . 110 559 103 Spaces Moved 522 | 1 68 386 67 Core 8 | . . . 8 Treads . | . . . . Legs 464 | 1 68 386 9 Wheels 50 | . . . 50 Hover . | . . . . Flight . | . . . . Fastest Speed 100 | 120 120 120 100 Average Speed 125 | 120 120 128 113 Slowest Speed 250 | 120 120 150 250 Overloaded Moves . | . . . . Propulsion Burnouts . | . . . . Robots Hopped . | . . . . Cave-ins Triggered . | . . . . Exploration Rate (%) 22 | 2 26 49 13 Regions Visited 3 Branch Regions 1 Pre-discovered Areas 1 | . . 1 . Known Exits Taken . | . . . . Unknown Exits Taken 3 | 1 1 1 . Scrap Searched . | . . . . Spaces Dug . | . . . . Terrain Destroyed 28 | . . 23 5 Melee . | . . . . Projectile . | . . . . AOE 28 | . . 23 5 Terrain Rammed . | . . . . Walls Destroyed . | . . . . Machines Disabled . | . . . . Actions | -11 -10 -10 -9 --------- Run | Scr Mat Min Mat Total 592 | . 84 424 84 Wait . | . . . . Move 519 | . 67 385 67 Hop . | . . . . Pick Up 15 | . 5 8 2 Fast Attach . | . . . . Attach 14 | . 1 8 5 Detach 1 | . . 1 . Swap 2 | . . . 2 Drop 7 | . 4 2 1 Fire 33 | . 7 20 6 Melee . | . . . . Ram . | . . . . Kick . | . . . . Crush . | . . . . Escape Stasis . | . . . . Rewire . | . . . . Trap 1 | . . . 1 Miscellaneous . | . . . . Route ------- -11/Scrapyard -10/Materials -10/Mines -9/Materials History --------- Turn | Location | Event 1 | -11/Scrapyard | Discovered new exit (range 0) 1 | -11/Scrapyard | Entered Materials 89 | -10/Materials | Discovered new exit (range 15) 111 | -10/Materials | Entered Mines 160 | -10/Mines | Lost 3 parts (1p1n1w) 308 | -10/Mines | Found a hidden stash of uninstalled traps 319 | -10/Mines | YI-UF0 nonchalantly dropped a Grenade Launcher on the ground 340 | -10/Mines | Build established: Mutant 497 | -10/Mines | Core integrity fell below 50% 525 | -10/Mines | Lost 4 parts (1p1n2w) 646 | -10/Mines | Discovered new exit (range 9) 670 | -10/Mines | Entered Materials 670 | -9/Materials | Evolved 2 slots: Utility x1, Weapon x1 756 | -9/Materials | Core integrity fell below 50% 771 | -9/Materials | Core integrity fell below 20% 773 | -9/Materials | Destroyed by G-34 Mercenary with Small Laser Last Messages --------------- 00744_ Aluminum Leg destroyed. 00744_ Installed Proton Bomb Trap. 00745_ Ion Engine destroyed. 00749_ Acquired Hpw. Shotgun. 00753_ Destroyed Sml. Laser. 00756_ Purification Channel disabled. 00759_ Y-45 Defender destroyed. [Achievement: Storm Trooper] The achievement interface (ESC then open Records) offers an effective way to explore all of your earned achievements as well as seek out new goals for future runs. Important note for Steam players: Cogmind player global achievement rates displayed by Steam are all significantly underreported, in some cases by a huge margin, due to how they are calculated by Valve. 00764_ Hpw. Shotgun destroyed. 00765_ G-34 Mercenary destroyed. 00766_ Hcp. Battery destroyed. 00767_ Hpw. Shotgun destroyed. 00768_ Sml. Storage Unit destroyed. 00770_ Acquired 23 matter. Map ----- +----------------------------------------------------+ | | | | | | | | | | | | | | | | | | | | | | | | | | | ?????????????????????????????????????????????????? | | ?????????????????????????????????????????????????? | | ?????????????????????????????????????????????????? | | ?????????????????????????????????????????????????? | | ?????????????????????????????????????????????????? | | ????????????????????????????????????????#######+#? | | ????????????????????????????????????????+ +? | | ???????????????????????????########?????# #? | | ???????????????????????????#!! [!!#?????# #? | | ???????????????????????????#!![^!!#?????+ + | | ???????????????????????????#= s #?????# | | ?????????????+ ####### s ####### | | ????????????????# @ g s !%= # | | ????????????????# Y # | | ????????????????# s" """" # | | ????????????????# ##+######## """"""""" | | ????????????????????????????# """ """ | | ???????????????????????????"" | | ??????????????????????????#"T | | ??????????????????????????#"" " """"" ##### | | ??????????????????????????### """"""""" #???? | | ????????????????????????????# """ """ #???? | | ????????????????????????????# ? = #???? | | ????????????????????????????# ? #???? | | ????????????????????????????# """ #???? | | ?????????????????????????????? "?" #???? | | ?????????????????????????????? ???" #???? | | ????????????????????????????????? #???? | | ????????????????????????????????? ???? | | ?????????????????????????????????? ???? | | ???????????????????????????????????? ???? | | ?????????????????????????????????????? ?"T" ???? | | ??????????????????????????????????????????? ????? | | ?????????????????????????????????????????????????? | | ?????????????????????????????????????????????????? | | ?????????????????????????????????????????????????? | | ?????????????????????????????????????????????????? | +----------------------------------------------------+ Best States ------------- Heat Dissipation 28 Energy Generation 14 Energy Capacity 1050 Matter Stores 300 Matter Capacity 300 Sight Range 16 Terrain Scan Density 10 Evasion (%) 40 Item Schematics ----------------- None Robot Schematics ------------------ None Fabricated ------------ Nothing Alien Tech Used ----------------- None Achievements -------------- Storm Trooper Challenges ------------ None Game ------ Seed DecoderLauncherAxe Manual? 0 Play Time 00:19:02 Cumulative 18.3 hours Start 2021.12.10 @ 21:08:03 End 2021.12.10 @ 21:24:56 Sessions 1 Manual Loads 0 Difficulty Rogue Special Mode None Game No. 24 Rogue 24 Adventurer 0 Explorer 0 Win Type - Total 0 Types 0/0/0/0/0/0/0/0/0 Lore% 4 Gallery% 18 Achievement% 6 Wizard Run 0 Options --------- ASCII 0 Keyboard 0 Movement Numpad Keybinds 0 Fullscreen 1 Font 24/Smallcaps Map View 76x50 Tactical HUD 1 Map Filters NONE Filters NONE Steam 1 RUN: 497a3cc8-069f-4d35-9cfa-19a2cd47b769